fUSD/lending_fUSD_20260203
["ID","MTS","AMOUNT","RATE_DAILY","PERIOD"]
[404432098,1770136242477,-5613.98559882,0.00013,2]
[404432099,1770136242486,-4434.56277461,0.00013,2]
[404432100,1770136242495,-6453.0,0.00013038,2]
[404432101,1770136242505,-5354.65944007,0.0001305,2]
[404432102,1770136242514,-34594.12142349,0.00013056,2]
[404432103,1770136242523,-4340.2354089,0.000132,2]
[404432104,1770136242533,-179.39452399,0.000132,2]
[404432105,1770136242542,-500.0,0.00013205,2]
[404432106,1770136242551,-1027.49,0.00013256,2]
[404432107,1770136242561,-151.0,0.0001333,2]
[404432108,1770136242571,-151.0,0.00013353,2]
[404432109,1770136242582,-151.0,0.00013353,2]
[404432110,1770136242591,-151.0,0.00013353,2]
[404432111,1770136242601,-183.76045452,0.000135,2]
[404432112,1770136242611,-277.35679052,0.00013508,2]
[404432113,1770136242622,-1027.49,0.0001353,2]
[404432114,1770136242631,-37801.94347564,0.0001353,2]
[404432115,1770136242640,-1103.0,0.00013679,2]
[404432116,1770136242651,-1039.76400801,0.00013698,2]
[404432117,1770136242660,-500.0,0.00013698,2]
[404432118,1770136242670,-501.81901913,0.00013698,2]
[404432119,1770136242680,-505.6105481,0.00013698,2]
[404432120,1770136242691,-500.0,0.00013698,2]
[404432121,1770136242700,-500.0,0.00013698,2]
[404432122,1770136242710,-500.0,0.00013698,2]
[404432123,1770136242720,-500.0,0.00013698,2]
[404432124,1770136242729,-500.0,0.00013698,2]
[404432125,1770136242738,-500.0,0.00013698,2]
[404432126,1770136242748,-500.0,0.00013698,2]
[404432127,1770136242757,-500.0,0.00013698,2]
[404432128,1770136242767,-500.0,0.00013698,2]
[404432129,1770136242776,-500.0,0.00013698,2]
[404432130,1770136242785,-500.0,0.00013698,2]
[404432131,1770136242794,-500.0,0.00013698,2]
[404432132,1770136242804,-500.0,0.00013698,2]
[404432133,1770136242813,-500.0,0.00013698,2]
[404432134,1770136242823,-500.0,0.00013698,2]
[404432135,1770136242832,-500.0,0.00013698,2]
[404432136,1770136242841,-500.0,0.00013698,2]
[404432137,1770136242851,-509.06540724,0.00013698,2]
[404432138,1770136242860,-500.0,0.00013698,2]
[404432139,1770136242869,-500.0,0.00013698,2]
[404432140,1770136242878,-500.0,0.00013698,2]
[404432141,1770136242887,-500.0,0.00013698,2]
[404432142,1770136242897,-500.0,0.00013698,2]
[404432143,1770136242907,-508.00914529,0.00013698,2]
[404432144,1770136242916,-500.0,0.00013698,2]
[404432145,1770136242926,-151.96294497,0.00013698,2]
[404432146,1770136242936,-500.0,0.00013698,2]
[404432147,1770136242945,-500.0,0.00013698,2]
[404432148,1770136242956,-500.0,0.00013698,2]
[404432149,1770136242968,-500.0,0.00013698,2]
[404432150,1770136242978,-500.0,0.00013698,2]
[404432151,1770136242987,-500.0,0.00013698,2]
[404432152,1770136242996,-500.0,0.00013698,2]
[404432153,1770136243006,-500.0,0.00013698,2]
[404432154,1770136243016,-500.0,0.00013698,2]
[404432155,1770136243025,-500.0,0.00013698,2]
[404432156,1770136243035,-587.89105672,0.00013698,2]
[404432157,1770136243044,-500.0,0.00013698,2]
[404432158,1770136243054,-500.0,0.00013698,2]
[404432159,1770136243063,-500.0,0.00013698,2]
[404432160,1770136243072,-500.0,0.00013698,2]
[404432161,1770136243082,-500.0,0.00013698,2]
[404432162,1770136243095,-500.0,0.00013698,2]
[404432163,1770136243115,-340.45778603,0.00013698,2]
[404432164,1770136243124,-500.0,0.00013698,2]
[404432165,1770136243134,-500.0,0.00013698,2]
[404432166,1770136243144,-500.0,0.00013698,2]
[404432167,1770136243153,-500.0,0.00013698,2]
[404432169,1770136243163,-500.0,0.00013698,2]
[404432170,1770136243174,-500.0,0.00013698,2]
[404432172,1770136243183,-500.0,0.00013698,2]
[404432174,1770136243194,-500.0,0.00013698,2]
[404432175,1770136243205,-500.0,0.00013698,2]
[404432177,1770136243216,-620.13152007,0.00013698,2]
[404432178,1770136243226,-500.0,0.00013698,2]
[404432179,1770136243236,-500.0,0.00013698,2]
[404432180,1770136243245,-500.0,0.00013698,2]
[404432181,1770136243255,-438.97921379,0.00013698,2]
[404432182,1770136243267,-199.38200897,0.00013698,2]
[404432183,1770136243279,-545.50641599,0.00013698,2]
[404432184,1770136243288,-500.0,0.00013698,2]
[404432185,1770136243299,-500.0,0.00013698,2]
[404432186,1770136243309,-500.0,0.00013698,2]
[404432187,1770136243319,-500.0,0.00013698,2]
[404432188,1770136243330,-500.0,0.00013698,2]
[404432189,1770136243339,-500.0,0.00013698,2]
[404432190,1770136243350,-500.0,0.00013698,2]
[404432191,1770136243360,-500.0,0.00013698,2]
[404432192,1770136243370,-500.0,0.00013698,2]
[404432193,1770136243381,-500.0,0.00013698,2]
[404432194,1770136243392,-452.02134495,0.00013698,2]
[404432195,1770136243400,-500.0,0.00013698,2]
[404432196,1770136243411,-500.0,0.00013698,2]
[404432197,1770136243421,-168.77902155,0.00013698,2]
[404432198,1770136243431,-500.0,0.00013698,2]
[404432199,1770136243442,-500.0,0.00013698,2]
[404432200,1770136243452,-500.0,0.00013698,2]
[404432201,1770136243464,-500.0,0.00013698,2]
[404432202,1770136243473,-500.0,0.00013698,2]
[404432203,1770136243482,-500.0,0.00013698,2]
[404432204,1770136243492,-500.0,0.00013698,2]
[404432205,1770136243501,-500.0,0.00013698,2]
[404432206,1770136243512,-500.0,0.00013698,2]
[404432207,1770136243522,-500.0,0.00013698,2]
[404432208,1770136243532,-500.0,0.00013698,2]
[404432209,1770136243541,-500.0,0.00013698,2]
[404432210,1770136243551,-500.0,0.00013698,2]
[404432211,1770136243560,-500.0,0.00013698,2]
[404432212,1770136243569,-500.0,0.00013698,2]
[404432213,1770136243579,-500.0,0.00013698,2]
[404432214,1770136243588,-500.0,0.00013698,2]
[404432215,1770136243598,-500.0,0.00013698,2]
[404432216,1770136243607,-500.0,0.00013698,2]
[404432217,1770136243616,-500.0,0.00013698,2]
[404432218,1770136243626,-548.33821979,0.00013698,2]
[404432219,1770136243635,-500.0,0.00013698,2]
[404432220,1770136243644,-293.83360739,0.00013698,2]
[404432221,1770136243654,-599.11588893,0.00013698,2]
[404432222,1770136243663,-500.0,0.00013698,2]
[404432223,1770136243672,-500.0,0.00013698,2]
[404432224,1770136243681,-500.0,0.00013698,2]
[404432225,1770136243691,-500.0,0.00013698,2]
[404432226,1770136243700,-500.0,0.00013698,2]
[404432227,1770136243709,-500.0,0.00013698,2]
[404432228,1770136243720,-500.0,0.00013698,2]
[404432229,1770136243729,-500.0,0.00013698,2]
[404432230,1770136243739,-500.0,0.00013698,2]
[404432231,1770136243748,-500.0,0.00013698,2]
[404432232,1770136243758,-222.83714718,0.00013698,2]
[404432233,1770136243767,-500.0,0.00013698,2]
[404432234,1770136243777,-500.0,0.00013698,2]
[404432235,1770136243787,-500.0,0.00013698,2]
[404432236,1770136243797,-500.0,0.00013698,2]
[404432237,1770136243809,-500.0,0.00013698,2]
[404432238,1770136243819,-500.0,0.00013698,2]
[404432239,1770136243830,-500.0,0.00013698,2]
[404432240,1770136243841,-500.0,0.00013698,2]
[404432241,1770136243853,-500.0,0.00013698,2]
[404432242,1770136243862,-500.0,0.00013698,2]
[404432243,1770136243872,-500.0,0.00013698,2]
[404432244,1770136243883,-500.0,0.00013698,2]
[404432245,1770136243895,-500.0,0.00013698,2]
[404432246,1770136243905,-500.0,0.00013698,2]
[404432247,1770136243915,-500.0,0.00013698,2]
[404432248,1770136243926,-500.0,0.00013698,2]
[404432249,1770136243938,-500.0,0.00013698,2]
[404432250,1770136243949,-500.0,0.00013698,2]
[404432251,1770136243958,-500.0,0.00013698,2]
[404432252,1770136243969,-500.0,0.00013698,2]
[404432253,1770136243979,-500.0,0.00013698,2]
[404432254,1770136243988,-500.0,0.00013698,2]
[404432255,1770136243998,-500.0,0.00013698,2]
[404432256,1770136244008,-500.0,0.00013698,2]
[404432257,1770136244017,-500.0,0.00013698,2]
[404432258,1770136244027,-500.0,0.00013698,2]
[404432259,1770136244037,-500.0,0.00013698,2]
[404432260,1770136244046,-500.0,0.00013698,2]
[404432261,1770136244055,-500.0,0.00013698,2]
[404432262,1770136244064,-500.0,0.00013698,2]
[404432263,1770136244074,-500.0,0.00013698,2]
[404432264,1770136244084,-500.0,0.00013698,2]
[404432265,1770136244094,-500.0,0.00013698,2]
[404432266,1770136244104,-500.0,0.00013698,2]
[404432267,1770136244114,-242.43769509,0.00013698,2]
[404432268,1770136244124,-500.0,0.00013698,2]
[404432269,1770136244134,-500.0,0.00013698,2]
[404432270,1770136244144,-500.0,0.00013698,2]
[404432271,1770136244164,-500.0,0.00013698,2]
[404432272,1770136244176,-500.0,0.00013698,2]
[404432273,1770136244189,-500.0,0.00013698,2]
[404432274,1770136244202,-500.0,0.00013698,2]
[404432275,1770136244215,-500.0,0.00013698,2]
[404432276,1770136244459,-500.0,0.00013698,2]
[404432277,1770136244471,-500.0,0.00013698,2]
[404432278,1770136244480,-500.0,0.00013698,2]
[404432279,1770136244490,-500.0,0.00013698,2]
[404432280,1770136244503,-500.0,0.00013698,2]
[404432282,1770136244513,-500.0,0.00013698,2]
[404432284,1770136244523,-595.81274949,0.00013698,2]
[404432286,1770136244532,-500.0,0.00013698,2]
[404432288,1770136244542,-592.50627165,0.00013698,2]
[404432290,1770136244551,-500.0,0.00013698,2]
[404432291,1770136244560,-500.0,0.00013698,2]
[404432292,1770136244569,-500.0,0.00013698,2]
[404432293,1770136244578,-500.0,0.00013698,2]
[404432294,1770136244588,-500.0,0.00013698,2]
[404432295,1770136244597,-500.0,0.00013698,2]
[404432296,1770136244607,-500.0,0.00013698,2]
[404432297,1770136244616,-500.0,0.00013698,2]
[404432298,1770136244625,-500.0,0.00013698,2]
[404432299,1770136244635,-500.0,0.00013698,2]
[404432300,1770136244644,-500.0,0.00013698,2]
[404432301,1770136244654,-500.0,0.00013698,2]
[404432302,1770136244664,-500.0,0.00013698,2]
[404432303,1770136244674,-500.0,0.00013698,2]
[404432304,1770136244683,-200.0,0.00013699,2]
[404432305,1770136244693,-2129.0,0.00013721,2]
[404432306,1770136244702,-1027.49,0.00013804,2]
[404432307,1770136244713,-4690.22610267,0.00013871,2]
[404432308,1770136244727,-1500.0,0.00014,2]
[404432309,1770136244738,-287.61899177,0.00014056,2]
[404432310,1770136244747,-1027.49,0.00014078,2]
[404432311,1770136244759,-44956.68910458,0.00014156,2]
[404432312,1770136244769,-37801.94347564,0.00014249,2]
[404432313,1770136244780,-46807.0713,0.00014256,2]
[404432314,1770136244790,-9035.0,0.00014341,2]
[404432315,1770136244800,-1027.49,0.00014352,2]
[404432316,1770136244811,-1103.0,0.00014362,2]
[404432317,1770136244823,-10332.61714049,0.0001439,2]
[404432318,1770136244833,-298.26089446,0.00014604,2]
[404432319,1770136244844,-1027.49,0.00014626,2]
[404432320,1770136244853,-437.3,0.00014885,2]
[404432321,1770136244863,-1027.6,0.000149,2]
[404432322,1770136244873,-285.87896122,0.000149,2]
[404432323,1770136244882,-160.0,0.00014912,2]
[404432324,1770136244892,-180.0,0.00014999,2]
[404432325,1770136244901,-250.0,0.00015,2]
[404432326,1770136244911,-2051.98803165,0.00015,2]
[404432327,1770136244921,-2141.537179,0.00015,14]
[404432328,1770136244930,-7988.62760331,0.00015,2]
[404432329,1770136244940,-673712.739467,0.00015,3]
[404432330,1770136244950,-900.0,0.00015068,2]
[404432331,1770136244960,-1103.0,0.00015081,2]
[404432332,1770136244971,-604.0,0.00015092,2]
[404432333,1770136244982,-9681.08,0.00015101,2]
[404432334,1770136244995,-309.29654756,0.00015152,2]
[404432335,1770136245004,-4690.22610267,0.00015214,2]
[404432336,1770136245014,-150.0,0.00015262,7]
[404432337,1770136245024,-292.715643,0.00015262,7]
[404432338,1770136245033,-435.431287,0.00015262,7]
[404432339,1770136245043,-578.146931,0.00015262,7]
[404432340,1770136245052,-720.862574,0.00015262,7]
[404432341,1770136245061,-863.578218,0.00015262,7]
[404432342,1770136245071,-1006.293862,0.00015262,7]
[404432343,1770136245082,-1149.009506,0.00015262,7]
[404432344,1770136245096,-1291.725149,0.00015262,7]
[404432345,1770136245106,-1434.440793,0.00015262,7]
[404432346,1770136245116,-7830.0,0.00015775,2]
[404432347,1770136245128,-1103.0,0.00015835,2]
[404432348,1770136245138,-500.0,0.00015863,2]
[404432349,1770136245150,-500.0,0.0001594,2]
[404432350,1770136245162,-5000.0,0.0001596,2]
[404432351,1770136245175,-749.3077445,0.0001599,2]
[404432352,1770136245185,-185.23,0.00015999,2]
[404432353,1770136245195,-160.0,0.00016,3]
[404432354,1770136245206,-992824.29172171,0.00016,4]
[404432355,1770136245220,-2000.0,0.00016,2]
[404432356,1770136245230,-316.49289447,0.00016,2]
[404432357,1770136245240,-372.78,0.00016101,2]
[404432358,1770136245251,-4438.32,0.00016116,2]
[404432359,1770136245261,-180.4108127,0.00016144,2]
[404432360,1770136245271,-839.0,0.000164,2]
[404432361,1770136245280,-839.0,0.000164,2]
[404432362,1770136245290,-200.0,0.00016438,2]
[404432363,1770136245300,-200.0,0.00016438,3]
[404432364,1770136245309,-200.0,0.00016438,4]
[404432365,1770136245319,-200.0,0.00016438,5]
[404432366,1770136245328,-200.0,0.00016438,6]
[404432367,1770136245338,-200.0,0.00016438,7]
[404432368,1770136245347,-200.0,0.00016438,8]
[404432369,1770136245356,-200.0,0.00016438,9]
[404432370,1770136245366,-200.0,0.00016438,10]
[404432371,1770136245376,-200.0,0.00016438,11]
[404432372,1770136245385,-200.0,0.00016438,12]
[404432373,1770136245394,-200.0,0.00016438,13]
[404432374,1770136245404,-347.38207191,0.00016438,14]
[404432375,1770136245413,-500.0,0.00016438,2]
[404432376,1770136245423,-571.15632912,0.00016438,2]
[404432377,1770136245432,-900.0,0.00016438,2]
[404432378,1770136245441,-437.3,0.00016441,2]
[404432379,1770136245451,-4690.22610267,0.00016557,2]
[404432380,1770136245460,-1103.0,0.00016626,2]
[404432381,1770136245471,-150.0,0.00016678,7]
[404432382,1770136245481,-686.74889,0.00016678,7]
[404432383,1770136245491,-1223.497781,0.00016678,7]
[404432384,1770136245501,-1760.246672,0.00016678,7]
[404432385,1770136245510,-2296.995563,0.00016678,7]
[404432386,1770136245520,-2833.744454,0.00016678,7]
[404432387,1770136245529,-3370.493345,0.00016678,7]
[404432388,1770136245539,-3907.242236,0.00016678,7]
[404432389,1770136245549,-4443.991127,0.00016678,7]
[404432390,1770136245559,-4980.740018,0.00016678,7]
[404432391,1770136245569,-839.0,0.0001672,2]
[404432392,1770136245580,-869.0,0.0001672,2]
[404432393,1770136245591,-839.0,0.00016767,2]
[404432394,1770136245602,-839.0,0.00016839,2]
[404432395,1770136245611,-5888.0,0.00016975,2]
[404432396,1770136245621,-200.0,0.00016983,2]
[404432397,1770136245630,-300.0,0.00017,2]
[404432398,1770136245639,-160.0,0.00017,7]
[404432399,1770136245650,-2000.0,0.00017,2]
[404432400,1770136245659,-160.0,0.00017,7]
[404432401,1770136245669,-839.0,0.0001704,2]
[404432402,1770136245678,-839.0,0.0001704,2]
[404432403,1770136245688,-1000.0,0.00017051,7]
[404432404,1770136245698,-150.0135078,0.00017059,2]
[404432405,1770136245707,-151.0,0.00017117,2]
[404432406,1770136245719,-5888.0,0.0001712,2]
[404432407,1770136245729,-5888.0,0.00017121,2]
[404432408,1770136245738,-839.0,0.00017159,2]
[404432409,1770136245748,-5888.0,0.00017252,2]
[404432410,1770136245758,-1000.0,0.0001726,2]
[404432411,1770136245768,-5888.0,0.00017332,2]
[404432412,1770136245778,-200.0,0.00017447,2]
[404432413,1770136245787,-200.0,0.00017457,2]
[404432414,1770136245797,-1103.0,0.00017458,2]
[404432415,1770136245806,-2000.0,0.000175,2]
[404432416,1770136245816,-5200.0,0.000175,6]
[404432417,1770136245825,-1000.0,0.00017534,2]
[404432418,1770136245835,-5888.0,0.00017572,2]
[404432419,1770136245844,-5200.0,0.000176,6]
[404432420,1770136245854,-152.0,0.00017607,3]
[404432421,1770136245863,-604.26338719,0.0001764,2]
[404432422,1770136245873,-200.0,0.00017653,2]
[404432423,1770136245882,-200.0,0.00017678,2]
[404432424,1770136245892,-839.0,0.0001768,2]
[404432425,1770136245902,-836.0,0.0001768,2]
[404432426,1770136245912,-5888.0,0.00017692,2]
[404432427,1770136245922,-3393.83018374,0.000177,2]
[404432428,1770136245932,-5200.0,0.000177,6]
[404432429,1770136245941,-1000.0,0.0001773,2]
[404432430,1770136245951,-1000.0,0.00017733,2]
[404432431,1770136245961,-157.95285948,0.00017737,2]
[404432432,1770136245972,-1000.0,0.00017739,2]
[404432433,1770136245982,-1000.0,0.00017749,2]
[404432434,1770136245991,-1000.0,0.00017749,2]
[404432435,1770136246001,-150.0,0.00017754,2]
[404432436,1770136246011,-1000.0,0.00017761,2]
[404432437,1770136246020,-1000.0,0.0001777,2]
[404432438,1770136246030,-150.0,0.00017775,2]
[404432439,1770136246039,-1000.0,0.00017776,2]
[404432440,1770136246049,-172.57,0.00017781,2]
[404432441,1770136246059,-1000.0,0.00017781,2]
[404432442,1770136246068,-1000.0,0.00017792,2]
[404432443,1770136246078,-1000.0,0.00017794,2]
[404432444,1770136246088,-150.0,0.00017795,2]
[404432445,1770136246097,-5888.0,0.00017795,2]
[404432446,1770136246107,-1000.0,0.00017797,2]
[404432447,1770136246117,-5595.0,0.000178,6]
[404432448,1770136246126,-250.0,0.00017808,5]
[404432449,1770136246136,-250.0,0.00017808,5]
[404432450,1770136246147,-250.0,0.00017808,5]
[404432452,1770136246157,-250.0,0.00017808,5]
[404432453,1770136246166,-250.0,0.00017808,5]
[404432455,1770136246177,-318.936746,0.00017808,5]
[404432456,1770136246189,-1000.0,0.00017808,2]
[404432457,1770136246203,-150.0,0.00017809,2]
[404432458,1770136246214,-150.0,0.00017818,2]
[404432459,1770136246223,-2000.0,0.0001782,2]
[404432460,1770136246233,-2000.0,0.0001782,2]
[404432461,1770136246244,-2000.0,0.0001782,2]
[404432462,1770136246254,-2000.0,0.0001782,2]
[404432463,1770136246265,-983.42551089,0.00017827,2]
[404432464,1770136246274,-5888.0,0.00017838,2]
[404432465,1770136246284,-1000.0,0.00017851,2]
[404432466,1770136246293,-1000.0,0.00017852,2]
[404432467,1770136246303,-1000.0,0.00017854,2]
[404432468,1770136246312,-200.0,0.00017855,2]
[404432469,1770136246323,-200.0,0.00017856,2]
[404432470,1770136246333,-5888.0,0.0001786,2]
[404432471,1770136246342,-5000.0,0.000179,2]
[404432472,1770136246352,-12478.67792849,0.000179,3]
[404432473,1770136246362,-179.39452399,0.000179,2]
[404432474,1770136246372,-4690.22610267,0.000179,2]
[404432475,1770136246381,-4340.2354089,0.000179,2]
[404432476,1770136246391,-500.0,0.000179,2]
[404432478,1770136246400,-500.0,0.000179,2]
[404432480,1770136246411,-500.0,0.000179,2]
[404432482,1770136246420,-500.0,0.000179,2]
[404432483,1770136246430,-500.0,0.000179,2]
[404432484,1770136246439,-500.0,0.000179,2]
[404432485,1770136246449,-500.0,0.000179,2]
[404432486,1770136246460,-500.0,0.000179,2]
[404432488,1770136246474,-500.0,0.000179,2]
[404432490,1770136246484,-500.0,0.000179,2]
[404432492,1770136246495,-16222.0,0.000179,2]
[404432494,1770136246505,-1000.0,0.00017915,2]
[404432496,1770136246515,-150.0,0.00017921,2]
[404432498,1770136246524,-1000.0,0.0001793,2]
[404432500,1770136246535,-150.0,0.00017946,2]
[404432502,1770136246544,-1000.0,0.00017947,2]
[404432504,1770136246554,-150.0,0.00017962,2]
[404432506,1770136246565,-166.51015303,0.00017973,2]
[404432508,1770136246574,-500.0,0.00017973,2]
[404432510,1770136246584,-500.0,0.00017973,2]
[404432512,1770136246594,-562.28195765,0.00017973,2]
[404432514,1770136246603,-152.0,0.00017973,4]
[404432515,1770136246613,-5888.0,0.0001798,2]
[404432518,1770136246625,-13425.366486,0.00017981,2]
[404432520,1770136246634,-380411.6461781,0.00017981,2]
[404432521,1770136246644,-11305.7327907,0.00017981,2]
[404432522,1770136246653,-1903.206863,0.00017981,2]
[404432523,1770136246664,-1903.206863,0.00017981,2]
[404432524,1770136246674,-1903.206863,0.00017981,2]
[404432525,1770136246683,-1903.206863,0.00017981,2]
[404432526,1770136246694,-930.52052436,0.00017982,2]
[404432527,1770136246703,-150.0,0.00017986,2]
[404432528,1770136246715,-3359.99999999,0.0001799,3]
[404432529,1770136246724,-151.0,0.00017997,2]
[404432530,1770136246734,-322.6107,0.00017998,5]
[404432531,1770136246743,-334.5472959,0.00017998,5]
[404432532,1770136246756,-346.92554585,0.00017998,5]
[404432533,1770136246766,-174.61919141,0.00017998,5]
[404432534,1770136246776,-578.20924308,0.00017998,5]
[404432535,1770136246787,-359.76179104,0.00017998,5]
[404432536,1770136246796,-181.08010149,0.00017998,5]
[404432537,1770136246806,-599.60298507,0.00017998,5]
[404432538,1770136246816,-373.07297731,0.00017998,5]
[404432539,1770136246826,-187.78006525,0.00017998,5]
[404432540,1770136246837,-386.87667747,0.00017998,5]
[404432541,1770136246847,-194.72792766,0.00017998,5]
[404432542,1770136246858,-621.78829552,0.00017998,5]
[404432543,1770136246875,-401.19111454,0.00017998,5]
[404432544,1770136246885,-500.0,0.00017998,5]
[404432545,1770136246896,-201.93286099,0.00017998,5]
[404432546,1770136246906,-644.79446246,0.00017998,5]
[404432548,1770136246915,-416.03518578,0.00017998,5]
[404432550,1770136246990,-500.0,0.00017998,5]
[404432551,1770136247000,-500.0,0.00017998,5]
[404432553,1770136247009,-209.40437684,0.00017998,5]
[404432555,1770136247018,-404.1693775,0.00017998,5]
[404432557,1770136247027,-642.81998071,0.00017998,5]
[404432559,1770136247037,-500.0,0.00017998,5]
[404432561,1770136247046,-217.15233878,0.00017998,5]
[404432563,1770136247055,-431.42848765,0.00017998,5]
[404432565,1770136247065,-500.0,0.00017998,5]
[404432567,1770136247074,-225.18697532,0.00017998,5]
[404432569,1770136247083,-447.3913417,0.00017998,5]
[404432571,1770136247093,-233.51889341,0.00017998,5]
[404432572,1770136247102,-500.0,0.00017998,5]
[404432573,1770136247112,-463.94482134,0.00017998,5]
[404432574,1770136247121,-242.15909246,0.00017998,5]
[404432575,1770136247130,-500.0,0.00017998,5]
[404432576,1770136247140,-481.11077973,0.00017998,5]
[404432577,1770136247149,-251.11897888,0.00017998,5]
[404432578,1770136247158,-500.0,0.00017998,5]
[404432580,1770136247167,-498.91187858,0.00017998,5]
[404432582,1770136247178,-260.4103811,0.00017998,5]
[404432584,1770136247187,-500.0,0.00017998,5]
[404432586,1770136247198,-517.37161808,0.00017998,5]
[404432588,1770136247207,-500.0,0.00017998,5]
[404432589,1770136247220,-270.0455652,0.00017998,5]
[404432590,1770136247229,-500.0,0.00017998,5]
[404432591,1770136247239,-536.51436795,0.00017998,5]
[404432592,1770136247248,-500.0,0.00017998,5]
[404432593,1770136247258,-280.03725112,0.00017998,5]
[404432594,1770136247268,-500.0,0.00017998,5]
[404432595,1770136247277,-500.0,0.00017998,5]
[404432596,1770136247287,-556.36539957,0.00017998,5]
[404432597,1770136247296,-500.0,0.00017998,5]
[404432598,1770136247305,-290.39862941,0.00017998,5]
[404432599,1770136247315,-500.0,0.00017998,5]
[404432600,1770136247324,-500.0,0.00017998,5]
[404432601,1770136247333,-427.3188552,0.00017998,5]
[404432602,1770136247343,-500.0,0.00017998,5]
[404432603,1770136247352,-301.1433787,0.00017998,5]
[404432604,1770136247362,-507.65857495,0.00017998,5]
[404432605,1770136247371,-500.0,0.00017998,5]
[404432606,1770136247381,-500.0,0.00017998,5]
[404432607,1770136247391,-500.0,0.00017998,5]
[404432608,1770136247400,-500.0,0.00017998,5]
[404432609,1770136247409,-500.0,0.00017998,5]
[404432610,1770136247418,-500.0,0.00017998,5]
[404432611,1770136247428,-500.0,0.00017998,5]
[404432612,1770136247437,-151.0,0.00017998,5]
[404432613,1770136247446,-151.0,0.00017998,5]
[404432614,1770136247455,-151.0,0.00017998,5]
[404432615,1770136247466,-151.0,0.00017998,5]
[404432616,1770136247475,-151.0,0.00017998,5]
[404432617,1770136247485,-151.0,0.00017998,5]
[404432618,1770136247494,-151.0,0.00017998,5]
[404432619,1770136247503,-151.0,0.00017998,5]
[404432620,1770136247512,-151.0,0.00017998,5]
[404432621,1770136247521,-151.0,0.00017998,5]
[404432622,1770136247531,-151.0,0.00017998,5]
[404432623,1770136247540,-209.40437684,0.00017998,5]
[404432624,1770136247549,-209.40437685,0.00017998,5]
[404432625,1770136247559,-721.12765535,0.00017998,5]
[404432626,1770136247568,-160.0,0.00017998,5]
[404432627,1770136247578,-747.8093786,0.00017998,5]
[404432628,1770136247587,-160.3826751,0.00017998,5]
[404432629,1770136247606,-775.47832561,0.00017998,5]
[404432630,1770136247615,-804.17102365,0.00017998,5]
[404432631,1770136247624,-833.92535153,0.00017998,5]
[404432632,1770136247634,-200.0,0.00017998,5]
[404432633,1770136247643,-864.78058953,0.00017998,5]
[404432634,1770136247653,-200.0,0.00017998,5]
[404432635,1770136247662,-896.77747135,0.00017998,5]
[404432636,1770136247671,-200.0,0.00017998,5]
[404432637,1770136247681,-929.95823779,0.00017998,5]
[404432638,1770136247690,-200.0,0.00017998,5]
[404432639,1770136247699,-209.40437684,0.00017998,5]
[404432640,1770136247708,-964.36669259,0.00017998,5]
[404432641,1770136247719,-217.15233878,0.00017998,5]
[404432642,1770136247729,-1000.04826021,0.00017998,5]
[404432643,1770136247738,-225.18697532,0.00017998,5]
[404432644,1770136247748,-174.13280155,0.00017998,5]
[404432645,1770136247757,-233.51889341,0.00017998,5]